bitfinex/quotes_BTCUSD_20220109
["timestamp","ask_amount","ask_price","bid_price","bid_amount"]
[1641743825373,0.44418816,41609.0,41605.0,0.59822095]
[1641743825774,0.44418816,41609.0,41605.0,0.59840587]
[1641743826175,0.39906196,41609.0,41605.0,0.59840587]
[1641743826477,0.015,41609.0,41605.0,0.59840587]
[1641743826876,0.015,41609.0,41605.0,0.59859079]
[1641743827075,0.015,41609.0,41605.0,0.59840587]
[1641743828026,0.24,41610.0,41605.0,0.59840587]
[1641743828226,0.015,41609.0,41605.0,0.59840587]
[1641743829428,0.24,41610.0,41605.0,0.59840587]
[1641743830030,0.253,41610.0,41605.0,0.59840587]
[1641743831432,0.24,41610.0,41605.0,0.59840587]
[1641743832084,0.24,41610.0,41605.0,0.60640587]
[1641743832688,0.24,41610.0,41606.0,0.3062698]
[1641743833485,0.24,41610.0,41606.0,0.30645471]
[1641743834086,0.24,41610.0,41606.0,0.31845471]
[1641743834290,0.24,41610.0,41607.0,0.43641]
[1641743834686,0.24,41610.0,41607.0,0.59651254]
[1641743835086,0.24,41610.0,41609.0,0.00122545]
[1641743835286,0.24,41610.0,41609.0,2.06103461]
[1641743835535,0.00020781,41612.0,41611.0,0.47999999]
[1641743835729,0.00020781,41612.0,41611.0,0.84829901]
[1641743836130,0.00020781,41612.0,41611.0,0.91029901]
[1641743836328,0.00020781,41612.0,41611.0,1.31739099]
[1641743836529,0.0002,41620.0,41615.0,0.34071945]
[1641743836729,0.0002,41620.0,41616.0,0.72417677]
[1641743836933,0.02872069,41618.0,41616.0,0.72417677]
[1641743837130,0.00120466,41618.0,41616.0,0.72417677]
[1641743837532,0.00120466,41618.0,41616.0,0.33576677]
[1641743838232,0.0151,41617.0,41616.0,0.34476677]
[1641743838733,0.2551,41617.0,41616.0,0.34476677]
[1641743839374,0.2401,41617.0,41616.0,0.33576677]
[1641743840077,0.2561,41617.0,41616.0,0.34476677]
[1641743840977,0.2561,41617.0,41616.0,0.009]
[1641743841977,0.2401,41617.0,41616.0,0.30698604]
[1641743842179,0.2531,41617.0,41616.0,0.31598604]
[1641743842378,0.2531,41617.0,41616.0,0.70568313]
[1641743842578,0.2531,41617.0,41616.0,0.80568313]
[1641743843032,0.2531,41617.0,41616.0,0.70568313]
[1641743843230,0.2531,41617.0,41616.0,0.80368313]
[1641743843430,0.2401,41617.0,41616.0,0.84468313]
[1641743843833,0.0002,41618.0,41617.0,1.14727536]
[1641743844033,0.0002,41618.0,41617.0,0.97607026]
[1641743844233,0.0002,41620.0,41619.0,1.678]
[1641743844436,0.0001,41635.0,41622.0,0.38841]
[1641743844639,0.0001,41635.0,41626.0,0.38965051]
[1641743844837,0.0001,41635.0,41627.0,0.43641]
[1641743845433,0.0001,41635.0,41627.0,0.53641]
[1641743846233,0.00100466,41634.0,41627.0,0.9062986]
[1641743846635,0.0035845,41629.0,41627.0,0.9062986]
[1641743846889,0.0035845,41629.0,41628.0,0.39041401]
[1641743847180,0.0035845,41629.0,41628.0,0.80105722]
[1641743847484,0.0035845,41629.0,41628.0,0.80230026]
[1641743848281,0.0035845,41629.0,41628.0,0.91630026]
[1641743848483,0.0035845,41629.0,41628.0,1.25468379]
[1641743848682,0.0035845,41629.0,41628.0,0.91630026]
[1641743849282,0.0035845,41629.0,41628.0,1.25465495]
[1641743849482,0.0035845,41629.0,41628.0,5.01535265]
[1641743850183,0.0035845,41629.0,41628.0,4.69399796]
[1641743850383,0.00100466,41634.0,41630.0,0.9537845]
[1641743850637,0.0001,41641.0,41634.0,0.38841]
[1641743850828,0.0001,41641.0,41636.0,1.66769174]
[1641743851029,0.0001,41641.0,41636.0,1.71569174]
[1641743851229,0.0001,41641.0,41636.0,1.76569174]
[1641743851529,0.0001,41637.0,41636.0,2.02831068]
[1641743851929,0.00401079,41639.0,41637.0,0.40206656]
[1641743852131,0.00401079,41639.0,41638.0,0.4376937]
[1641743852828,0.00401079,41639.0,41638.0,0.43641]
[1641743853430,0.00401079,41639.0,41638.0,0.74005592]
[1641743853630,0.00401079,41639.0,41638.0,0.048]
[1641743853830,0.00401079,41639.0,41633.0,0.048]
[1641743853831,0.2424668,41639.0,41633.0,0.048]
[1641743854031,0.2437531,41639.0,41630.0,0.0037845]
[1641743854283,0.2437531,41639.0,41638.0,0.005]
[1641743854684,0.2437531,41639.0,41638.0,0.004906]
[1641743854685,0.00529709,41639.0,41638.0,0.004906]
[1641743855488,0.00529709,41639.0,41630.0,0.0037845]
[1641743855684,0.28627737,41636.0,41630.0,0.0037845]
[1641743856284,0.28627737,41636.0,41630.0,0.0407845]
[1641743856884,0.00021534,41635.0,41630.0,0.0407845]
[1641743857285,0.28149271,41636.0,41631.0,7.019e-05]
[1641743858230,0.28149271,41636.0,41631.0,0.00207019]
[1641743858430,0.28149271,41636.0,41631.0,0.002]
[1641743858631,0.35176474,41635.0,41631.0,0.002]
[1641743859431,0.35176474,41635.0,41630.0,0.0037845]
[1641743860931,0.00122577,41633.0,41630.0,0.0037845]
[1641743861131,0.22994876,41632.0,41630.0,0.0037845]
[1641743861331,1.7020717,41631.0,41630.0,0.00398007]
[1641743862177,1.7130717,41631.0,41630.0,0.00398007]
[1641743862577,1.7130717,41631.0,41630.0,0.0037845]
[1641743862984,0.011,41631.0,41630.0,0.0037845]
[1641743863179,0.011,41631.0,41630.0,0.00501918]
[1641743863580,0.00120881,41637.0,41630.0,0.00501918]
[1641743863779,0.00120881,41637.0,41630.0,0.0037845]
[1641743864180,0.24870609,41634.0,41630.0,0.0127845]
[1641743864581,0.27936288,41632.0,41630.0,0.0127845]
[1641743864981,0.27936288,41632.0,41631.0,0.00019557]
[1641743865926,0.66979523,41632.0,41630.0,0.0037845]
[1641743866127,0.50749562,41631.0,41617.0,0.06842536]
[1641743866327,0.060102,41627.0,41617.0,0.06842536]
[1641743866526,0.34043934,41624.0,41617.0,0.06842536]
[1641743866927,0.33968827,41623.0,41617.0,0.06842536]
[1641743868330,0.33968827,41623.0,41617.0,0.12942536]
[1641743868528,0.34043934,41624.0,41617.0,0.12942536]
[1641743869281,0.34043934,41624.0,41618.0,0.00010265]
[1641743869878,0.58043934,41624.0,41618.0,0.00010265]
[1641743870075,0.58043934,41624.0,41619.0,0.00019521]
[1641743871277,0.58043934,41624.0,41619.0,0.0001952]
[1641743871677,0.57216934,41624.0,41619.0,0.0001952]
[1641743872276,0.57416934,41624.0,41619.0,0.0541952]
[1641743873523,0.57216934,41624.0,41619.0,0.0001843]
[1641743874324,0.61316934,41624.0,41619.0,0.0091843]
[1641743874525,0.61316934,41624.0,41619.0,0.00937222]
[1641743874725,0.61316934,41624.0,41619.0,0.00918792]
[1641743875524,0.57216934,41624.0,41619.0,0.00018792]
[1641743876325,0.58416934,41624.0,41619.0,0.00918792]
[1641743877476,0.58416934,41624.0,41619.0,0.00018792]
[1641743877477,0.24,41624.0,41619.0,0.00018792]
[1641743877975,0.24,41624.0,41619.0,0.00018833]
[1641743878176,0.246,41624.0,41619.0,0.01518833]
[1641743878479,0.60217731,41624.0,41619.0,0.01518833]
[1641743878879,0.60217731,41624.0,41619.0,0.01313025]
[1641743879079,0.60217731,41624.0,41619.0,0.01331851]
[1641743879477,1.59617731,41624.0,41619.0,0.00018826]
[1641743880079,1.59617731,41624.0,41617.0,0.06842536]
[1641743880281,1.59617731,41624.0,41619.0,0.057]
[1641743880523,1.24,41624.0,41619.0,0.057]
[1641743881327,1.24,41624.0,41619.0,0.11708602]
[1641743881527,1.24,41624.0,41619.0,0.05]
[1641743882130,1.24,41624.0,41617.0,0.4762285]
[1641743882331,1.24,41624.0,41619.0,0.012]
[1641743883530,1.24,41624.0,41617.0,0.06862013]
[1641743884376,1.24,41624.0,41617.0,0.07662013]
[1641743885478,1.24,41624.0,41617.0,0.06810813]
[1641743886078,1.24,41624.0,41617.0,0.37304086]
[1641743886280,1.24,41624.0,41617.0,0.38305294]
[1641743886479,1.24,41624.0,41617.0,0.48305294]
[1641743886680,1.24,41624.0,41617.0,0.17609726]
[1641743886881,1.24,41624.0,41617.0,0.23618695]
[1641743887080,1.24,41624.0,41617.0,0.17609726]
[1641743887280,1.24,41624.0,41617.0,0.07609726]
[1641743887480,0.38279847,41622.0,41617.0,0.06809726]
[1641743887883,0.38279847,41622.0,41617.0,0.06810087]
[1641743888330,0.38279847,41622.0,41617.0,0.07617108]
[1641743889032,0.38279847,41622.0,41617.0,0.07617102]
[1641743889530,0.38279847,41622.0,41617.0,0.06810081]
[1641743889930,0.38279847,41622.0,41617.0,0.06828826]
[1641743890131,0.38279847,41622.0,41617.0,0.06810081]
[1641743890330,0.38279847,41622.0,41617.0,0.07610081]
[1641743890533,0.38279847,41622.0,41617.0,0.07617102]
[1641743891130,0.38279847,41622.0,41617.0,0.07617143]
[1641743891432,0.38279847,41622.0,41617.0,0.06817143]
[1641743891633,0.38279847,41622.0,41617.0,0.06810122]
[1641743892082,0.34994016,41619.0,41617.0,0.06810122]
[1641743892281,0.34994016,41619.0,41617.0,0.07710122]
[1641743892883,0.28680713,41619.0,41617.0,0.07710122]
[1641743893384,0.28680713,41619.0,41617.0,0.07691336]
[1641743893584,0.28680713,41619.0,41617.0,0.06791336]
[1641743893784,0.38279847,41622.0,41617.0,0.06791336]
[1641743894188,0.38279847,41622.0,41617.0,0.07491336]
[1641743894383,0.38279847,41622.0,41617.0,0.07510122]
[1641743894785,0.63865704,41622.0,41617.0,0.07510122]
[1641743895541,0.38279847,41622.0,41617.0,0.06810122]
[1641743895743,0.38279847,41622.0,41617.0,0.06828906]
[1641743895942,0.38279847,41622.0,41617.0,0.0681012]
[1641743896342,0.38279847,41622.0,41617.0,0.0741012]
[1641743896544,0.38279847,41622.0,41617.0,0.07428904]
[1641743896745,0.38279847,41622.0,41617.0,0.0741012]
[1641743897142,0.2725018,41621.0,41617.0,0.0741012]
[1641743897542,0.2725018,41621.0,41617.0,0.0681012]
[1641743897743,0.2725018,41621.0,41617.0,0.06810476]
[1641743898344,0.019,41621.0,41617.0,0.07810476]
[1641743898943,0.019,41621.0,41617.0,0.07810477]
[1641743899582,0.74030835,41622.0,41617.0,0.06810477]
[1641743899985,0.74030835,41622.0,41617.0,0.06810456]
[1641743900389,0.74630835,41622.0,41617.0,0.08310456]
[1641743901086,0.74630835,41622.0,41617.0,0.08310093]
[1641743901588,0.74030835,41622.0,41617.0,0.06810093]
[1641743902086,0.38279847,41622.0,41617.0,0.06810093]
[1641743902286,0.38979847,41622.0,41617.0,0.08110093]
[1641743903133,0.38979847,41622.0,41617.0,0.0812885]
[1641743903336,0.38979847,41622.0,41617.0,0.08117114]
[1641743903632,0.38979847,41622.0,41617.0,0.06817114]
[1641743903633,0.38279847,41622.0,41617.0,0.06817114]
[1641743904232,0.38279847,41622.0,41617.0,0.06817135]
[1641743904535,0.04,41622.0,41617.0,0.07810114]
[1641743905434,0.04,41622.0,41617.0,0.07817142]
[1641743905634,1.24,41624.0,41617.0,0.06817142]
[1641743906235,1.276,41624.0,41617.0,0.07817142]
[1641743906436,1.276,41624.0,41617.0,0.07810121]
[1641743906638,1.276,41624.0,41619.0,0.32982688]
[1641743907781,1.276,41624.0,41620.0,0.30479273]
[1641743907982,0.0247765,41623.0,41620.0,0.30479273]
[1641743908382,1.24,41624.0,41620.0,0.31179273]
[1641743909580,1.24,41624.0,41620.0,0.30479273]
[1641743910382,1.24,41624.0,41620.0,0.31579273]
[1641743910834,0.42102607,41624.0,41620.0,0.31579273]
[1641743911035,0.42102607,41624.0,41621.0,0.38841]
[1641743911238,0.42102607,41624.0,41623.0,0.0012293]
[1641743911434,0.42102607,41624.0,41623.0,0.78487744]
[1641743911634,0.42102607,41624.0,41623.0,0.93487744]
[1641743912036,0.42102607,41624.0,41623.0,0.5876393]
[1641743912235,0.00020772,41627.0,41626.0,0.32636921]
[1641743912439,0.00020772,41627.0,41626.0,4.44582768]
[1641743912637,0.00020772,41627.0,41626.0,4.59582768]
[1641743913235,0.00020772,41629.0,41626.0,4.59582768]
[1641743913436,0.00020772,41629.0,41628.0,0.38841]
[1641743913636,0.00020772,41629.0,41628.0,0.58762748]
[1641743914295,0.00020772,41629.0,41628.0,0.60862748]
[1641743914494,0.00020772,41630.0,41628.0,1.04216635]
[1641743914694,0.00020772,41630.0,41628.0,0.78882838]
[1641743914897,0.00020772,41630.0,41629.0,0.36901851]
[1641743915096,0.00020772,41630.0,41629.0,0.95542851]
[1641743915495,0.00020771,41631.0,41629.0,0.95542851]
[1641743915694,0.00020771,41631.0,41630.0,0.448474]
[1641743915895,0.00020771,41631.0,41630.0,0.496474]
[1641743916095,0.00020771,41631.0,41630.0,0.596474]
[1641743916296,0.00020771,41631.0,41630.0,0.619474]
[1641743916497,0.00020771,41633.0,41630.0,0.619474]
[1641743916695,0.00020771,41633.0,41631.0,0.060067]
[1641743916896,0.00020771,41633.0,41632.0,0.43641]
[1641743917097,0.00020771,41633.0,41632.0,0.48641]
[1641743917498,0.00020771,41633.0,41632.0,0.5876232]
[1641743917700,0.00020771,41634.0,41632.0,1.8656232]
[1641743917903,0.00020771,41634.0,41633.0,0.38841]
[1641743918139,0.00020771,41634.0,41633.0,0.646468]
[1641743918340,0.00020771,41634.0,41633.0,1.00116918]
[1641743918941,0.0002077,41636.0,41633.0,1.06123218]
[1641743919142,0.0002077,41636.0,41634.0,0.0600622]
[1641743919343,0.0002077,41636.0,41635.0,0.43641]
[1641743919742,0.0002077,41636.0,41635.0,0.48641]
[1641743920043,0.0002077,41637.0,41636.0,0.05]
[1641743920244,0.0002077,41637.0,41636.0,0.48641]
[1641743920643,0.0002077,41637.0,41636.0,0.24641]
[1641743921043,0.00421849,41639.0,41636.0,0.30646761]
[1641743921242,0.00421849,41639.0,41637.0,0.060057]
[1641743921447,0.00421849,41639.0,41638.0,0.43641]
[1641743922087,0.00401079,41639.0,41638.0,0.43641]
[1641743922287,0.00401079,41639.0,41638.0,0.45141]
[1641743923488,0.00121742,41649.0,41638.0,0.45141]
[1641743923688,0.00123579,41649.0,41638.0,0.048]
[1641743924287,0.00123579,41649.0,41638.0,0.071]
[1641743924491,0.23392944,41658.0,41645.0,0.00129073]
[1641743924689,0.02190891,41659.0,41653.0,0.36083442]
[1641743924888,0.47584927,41663.0,41653.0,0.35583442]
[1641743924889,0.165123,41658.0,41653.0,0.35583442]
[1641743925087,0.47584927,41663.0,41653.0,0.35583442]
[1641743925289,0.165145,41662.0,41655.0,0.0006367]
[1641743925561,0.319149,41661.0,41655.0,0.0006367]
[1641743925737,0.319149,41661.0,41653.0,0.70811738]
[1641743926337,0.060047,41662.0,41653.0,0.71511738]
[1641743926538,0.11158575,41666.0,41654.0,0.36322134]
[1641743926539,0.00153875,41666.0,41654.0,0.36322134]
[1641743926939,0.165145,41665.0,41654.0,0.36322134]
[1641743927438,0.30085704,41662.0,41654.0,0.36322134]
[1641743927639,0.30107232,41662.0,41654.0,0.36322134]
[1641743927937,0.30107232,41662.0,41653.0,0.70811738]
[1641743928338,0.30107232,41662.0,41654.0,0.008]
[1641743928538,0.36112032,41662.0,41654.0,0.008]
[1641743928839,0.0006367,41658.0,41654.0,0.008]
[1641743929038,0.0006367,41658.0,41654.0,0.33678855]
[1641743929288,0.0006367,41658.0,41654.0,0.008]
[1641743929586,0.0006367,41658.0,41653.0,0.75811738]
[1641743929787,0.00084784,41658.0,41653.0,0.70811738]
[1641743930387,0.00084784,41658.0,41653.0,0.71711738]
[1641743930790,0.00084395,41658.0,41653.0,0.71711738]
[1641743931387,0.00084395,41658.0,41653.0,0.009]
[1641743931590,0.00084395,41658.0,41650.0,0.00120509]
[1641743931788,0.00084395,41658.0,41649.0,0.048]
[1641743931988,0.00084395,41658.0,41645.0,0.00018949]
[1641743932390,0.25199648,41653.0,41649.0,0.011]
[1641743933042,0.25220389,41653.0,41649.0,0.011]
[1641743933242,0.00020741,41653.0,41649.0,0.011]
[1641743933643,0.00020741,41653.0,41647.0,0.32528405]
[1641743934044,0.00020741,41653.0,41649.0,7.016e-05]
[1641743934246,0.0676478,41657.0,41649.0,7.016e-05]
[1641743934544,0.39120054,41657.0,41649.0,7.016e-05]
[1641743934946,0.060056,41656.0,41649.0,7.016e-05]
[1641743935346,0.26208471,41655.0,41647.0,0.36228405]
[1641743935546,0.26208471,41655.0,41644.0,0.43701808]
[1641743935547,0.27166487,41650.0,41644.0,0.43701808]
[1641743935747,0.27166487,41650.0,41644.0,0.05122536]
[1641743935952,0.27166487,41650.0,41649.0,7.016e-05]
[1641743936995,0.27166487,41650.0,41644.0,0.12428047]
[1641743937196,0.27166487,41650.0,41644.0,0.06422536]
[1641743937197,0.41747284,41649.0,41644.0,0.06422536]
[1641743937399,0.165145,41648.0,41644.0,0.063]
[1641743937596,0.165145,41648.0,41636.0,0.00122078]
[1641743937597,1.264317,41645.0,41636.0,0.00122078]
[1641743937796,1.264317,41645.0,41633.0,0.9918]
[1641743937797,0.45014185,41644.0,41633.0,0.9918]
[1641743937997,0.28510003,41640.0,41633.0,0.9918]
[1641743938198,0.38990774,41639.0,41634.0,0.3384825]
[1641743938396,0.38990774,41639.0,41631.0,0.06007368]
[1641743938397,0.38990774,41639.0,41633.0,0.025]
[1641743938699,0.38990774,41639.0,41636.0,0.00019961]
[1641743938897,0.28510003,41640.0,41636.0,0.00019961]
[1641743939097,0.4034764,41642.0,41636.0,0.00019961]
[1641743939298,0.164317,41641.0,41636.0,0.00019961]
[1641743939498,0.38377448,41645.0,41636.0,0.00019961]
[1641743939696,0.164317,41644.0,41636.0,0.00019961]
[1641743939898,0.164317,41644.0,41635.0,0.00019962]
[1641743940538,0.164317,41644.0,41637.0,0.32493473]
[1641743940739,0.164317,41644.0,41636.0,0.023]
[1641743940937,0.164317,41644.0,41637.0,0.0001996]
[1641743941742,0.164317,41644.0,41638.0,0.25674819]
[1641743942143,0.164317,41644.0,41638.0,0.25694779]
[1641743942342,0.168317,41644.0,41638.0,0.0191996]
[1641743942743,0.36503211,41643.0,41638.0,0.0191996]
[1641743942943,0.1655803,41639.0,41627.0,2.0441]
[1641743943144,0.23561288,41631.0,41621.0,0.91367816]
[1641743943344,0.31678437,41629.0,41621.0,1.17084332]
[1641743943543,0.26808761,41630.0,41621.0,1.17084332]
[1641743943743,0.26808761,41630.0,41623.0,0.06008843]
[1641743943947,0.26808761,41630.0,41621.0,1.29100938]
[1641743944398,0.23309761,41630.0,41623.0,0.063]
[1641743945199,0.33901232,41632.0,41623.0,0.063]
[1641743945396,0.00122027,41632.0,41623.0,0.063]
[1641743946299,0.00122027,41632.0,41622.0,0.29399054]
[1641743946300,0.00122027,41632.0,41624.0,0.060085]
[1641743946501,0.00122027,41632.0,41625.0,0.00019721]
[1641743946899,0.00122027,41632.0,41627.0,0.06008423]
[1641743947499,0.00122027,41632.0,41627.0,0.06028142]
[1641743948342,0.00922027,41632.0,41627.0,0.09828142]
[1641743949146,0.00922027,41632.0,41627.0,0.09835161]
[1641743949445,0.00922027,41632.0,41627.0,0.09834838]
[1641743949446,0.008,41632.0,41627.0,0.09834838]
[1641743949646,0.008,41632.0,41628.0,0.56776981]
[1641743949844,0.008,41632.0,41629.0,0.060073]
[1641743950245,0.32416496,41639.0,41631.0,0.30558111]
[1641743950446,0.164317,41638.0,41633.0,0.024]
[1641743950645,0.164317,41638.0,41631.0,0.30558111]
[1641743951147,0.29295214,41640.0,41633.0,0.00018983]
[1641743951344,0.164317,41639.0,41633.0,0.00018983]
[1641743951992,0.49083572,41639.0,41634.0,0.06007397]
[1641743952393,0.49383572,41639.0,41634.0,0.06026379]
[1641743952594,0.167317,41639.0,41634.0,0.06026379]
[1641743953396,0.167317,41639.0,41634.0,0.06045361]
[1641743953696,0.164317,41639.0,41634.0,0.06026379]
[1641743954095,0.164317,41639.0,41634.0,0.00018982]
[1641743954495,0.164317,41639.0,41634.0,0.00037964]
[1641743954797,0.164317,41639.0,41634.0,0.00018982]
[1641743955297,1.0,41644.0,41636.0,0.00121628]
[1641743955550,1.0,41644.0,41636.0,0.06128528]
[1641743955751,1.0,41644.0,41637.0,0.048]
[1641743956351,1.0,41644.0,41641.0,0.27819024]
[1641743956551,1.0,41644.0,41641.0,0.38825024]
[1641743956752,1.0,41644.0,41641.0,0.23017963]
[1641743956953,1.0,41644.0,41638.0,0.12012118]
[1641743957953,0.29862753,41641.0,41638.0,0.12012118]
[1641743958153,0.29862753,41641.0,41636.0,0.00037946]
[1641743958353,0.29362753,41641.0,41638.0,0.017]
[1641743958553,1.005,41644.0,41638.0,0.017]
[1641743959598,0.25967127,41643.0,41638.0,0.017]
[1641743960093,0.25967127,41643.0,41636.0,0.06025874]
[1641743960494,0.25967127,41643.0,41638.0,0.025]
[1641743960794,0.25967127,41643.0,41638.0,0.085066]
[1641743961095,0.25967127,41643.0,41640.0,0.06006594]
[1641743961294,0.164317,41642.0,41640.0,0.06006594]
[1641743962494,0.171317,41642.0,41640.0,0.07406594]
[1641743963741,0.164317,41642.0,41640.0,0.06006594]
[1641743964545,0.003,41642.0,41640.0,0.10406594]
[1641743964947,0.003,41642.0,41640.0,0.044]
[1641743965545,0.664317,41641.0,41640.0,0.044]
[1641743965746,0.664317,41641.0,41636.0,0.00018981]
[1641743966148,0.664317,41641.0,41640.0,7.017e-05]
[1641743966547,0.669317,41641.0,41640.0,7.017e-05]
[1641743967192,0.669317,41641.0,41636.0,0.01218981]
[1641743967391,0.669317,41641.0,41637.0,0.060067]
[1641743967392,0.169317,41641.0,41637.0,0.060067]
[1641743967595,0.005,41641.0,41637.0,0.060067]
[1641743967792,0.59130812,41643.0,41637.0,0.060067]
[1641743968394,0.60130812,41643.0,41637.0,0.068067]
[1641743968996,0.01,41643.0,41639.0,0.06006702]
[1641743969196,0.01,41643.0,41639.0,0.12013202]
[1641743969399,0.01,41643.0,41639.0,0.18019602]
[1641743969599,1.0,41641.0,41639.0,0.18019602]
[1641743970099,1.0,41641.0,41640.0,0.30142174]
[1641743970544,1.0,41641.0,41640.0,0.6174343]
[1641743971344,0.18139361,41641.0,41640.0,0.6174343]
[1641743972043,0.18139361,41641.0,41640.0,0.87439846]
[1641743972245,0.18139361,41641.0,41640.0,1.41194146]
[1641743972444,0.18139361,41641.0,41640.0,1.47517614]
[1641743973245,0.18139361,41641.0,41640.0,1.27517614]
[1641743973745,0.18139361,41641.0,41640.0,1.41317614]
[1641743973945,0.18139361,41641.0,41640.0,1.46317614]
[1641743974303,0.18139361,41641.0,41640.0,0.89019942]
[1641743974501,0.18139361,41641.0,41640.0,0.91119942]
[1641743974902,0.18139361,41641.0,41640.0,1.24200107]
[1641743975504,0.18139361,41641.0,41640.0,1.24076639]
[1641743975709,0.18139361,41641.0,41640.0,1.04076639]
[1641743976002,0.18139361,41641.0,41640.0,1.16976639]
[1641743976202,0.18139361,41641.0,41640.0,1.21976639]
[1641743976402,0.18139361,41641.0,41640.0,1.23776639]
[1641743977605,0.18139361,41641.0,41640.0,1.21976639]
[1641743978441,0.18139361,41641.0,41640.0,1.23776639]
[1641743979041,0.18139361,41641.0,41640.0,1.23753939]
[1641743979242,0.18139361,41641.0,41640.0,1.23877825]
[1641743979740,0.00020763,41648.0,41646.0,0.25906883]
[1641743979940,0.00020763,41648.0,41647.0,0.060044]
[1641743980144,0.00020761,41648.0,41647.0,0.84746813]
[1641743980344,0.00020761,41648.0,41647.0,0.89746813]
[1641743980640,0.00020761,41648.0,41647.0,1.69987127]
[1641743981241,0.00020762,41650.0,41647.0,1.69987127]
[1641743981639,0.00020762,41650.0,41647.0,1.75991327]
[1641743982094,0.00020762,41651.0,41647.0,1.75991327]
[1641743982396,0.00020762,41651.0,41648.0,0.12008126]
[1641743982594,0.00020762,41651.0,41649.0,0.447583]
[1641743982794,0.00020762,41651.0,41650.0,0.32346172]
[1641743982999,0.00020762,41651.0,41650.0,0.437543]
[1641743983197,0.00020762,41651.0,41650.0,0.537543]
[1641743983594,0.00020762,41652.0,41650.0,0.537543]
[1641743983794,0.00020762,41652.0,41651.0,0.387543]
[1641743984194,0.00020762,41652.0,41651.0,0.487543]
[1641743984393,0.0002075,41653.0,41651.0,0.487543]
[1641743984594,0.0002075,41653.0,41651.0,0.42351255]
[1641743984793,0.0002075,41653.0,41652.0,0.32594246]
[1641743984995,0.0002075,41653.0,41652.0,0.71348546]
[1641743985195,0.0002075,41653.0,41652.0,0.86348546]
[1641743986146,0.0002075,41653.0,41652.0,0.92352346]
[1641743986647,0.0676478,41657.0,41655.0,0.36116761]
[1641743986846,0.0676478,41657.0,41655.0,0.4712045]
[1641743987149,0.00161912,41658.0,41656.0,0.32133752]
[1641743987346,0.00161912,41658.0,41657.0,0.387543]
[1641743988149,0.00161912,41658.0,41656.0,0.060028]
[1641743988347,0.00161912,41658.0,41657.0,0.387543]
[1641743988348,0.0006367,41658.0,41657.0,0.387543]
[1641743988648,0.0006367,41658.0,41657.0,0.401543]
[1641743989495,0.0006367,41658.0,41657.0,0.014]
[1641743989695,0.0006367,41658.0,41657.0,0.32528003]
[1641743990097,0.0006367,41658.0,41656.0,0.060028]
[1641743990498,0.0006367,41658.0,41657.0,0.013]
[1641743991698,1.0506367,41658.0,41650.0,0.0600481]
[1641743991998,0.0006367,41658.0,41653.0,0.27235844]
[1641743992398,0.0006367,41658.0,41650.0,0.06004578]
[1641743992598,0.0006367,41658.0,41653.0,0.053]
[1641743993259,0.00020774,41656.0,41653.0,0.053]
[1641743993847,0.00020774,41656.0,41651.0,0.39703732]
[1641743994348,0.0002076,41657.0,41651.0,0.39703732]
[1641743994750,0.0002076,41657.0,41648.0,0.941]
[1641743994751,0.28735474,41653.0,41648.0,0.941]
[1641743994949,0.28735474,41653.0,41647.0,0.12008945]
[1641743995352,0.0002076,41657.0,41647.0,0.12008945]
[1641743995353,0.00020759,41655.0,41647.0,0.12008945]
[1641743995551,0.00020759,41655.0,41653.0,7.015e-05]
[1641743996555,0.024,41655.0,41653.0,7.015e-05]
[1641743996806,0.00120525,41649.0,41644.0,0.00019047]
[1641743997405,1.00216358,41645.0,41644.0,0.00019047]
[1641743997605,1.76579471,41645.0,41644.0,0.00038096]
[1641743997805,1.76579471,41645.0,41644.0,0.00019049]
[1641743997806,1.93011171,41645.0,41644.0,0.00019049]
[1641743998205,1.28011171,41645.0,41644.0,0.00019049]
[1641743998706,0.48261837,41645.0,41642.0,0.0001905]
[1641743998905,0.164317,41644.0,41642.0,0.0001905]
[1641743999606,0.48765523,41644.0,41642.0,0.0001905]
[1641744000007,0.48765523,41644.0,41641.0,0.00019051]
[1641744000650,0.49765523,41644.0,41641.0,0.00019051]
[1641744000850,0.174317,41644.0,41641.0,0.00019051]
[1641744001052,0.01,41644.0,41640.0,0.00019051]
[1641744001249,0.01,41644.0,41638.0,0.0588693]
[1641744001851,0.30730137,41645.0,41638.0,0.0588693]
[1641744002251,0.028826,41644.0,41638.0,0.0588693]
[1641744003453,0.028826,41644.0,41634.0,0.18019386]
[1641744003454,0.43037782,41640.0,41634.0,0.18019386]
[1641744003652,0.00127741,41643.0,41634.0,0.18019386]
[1641744004304,0.00127741,41643.0,41638.0,0.30013736]
[1641744004506,0.22,41643.0,41638.0,0.30013736]
[1641744004708,0.164317,41642.0,41638.0,0.30013736]
[1641744005006,0.164317,41642.0,41636.0,0.00010315]
[1641744005208,0.22,41643.0,41636.0,0.00010315]
[1641744005707,0.22,41643.0,41638.0,0.00019716]
[1641744006506,0.227,41643.0,41638.0,0.00019716]
[1641744008740,0.03036215,41642.0,41638.0,0.00819716]
[1641744008945,0.03036215,41642.0,41638.0,0.00818611]
[1641744009341,0.07061984,41640.0,41638.0,0.00818611]
[1641744009941,0.07061984,41640.0,41638.0,0.00018611]
[1641744010141,0.07061984,41640.0,41637.0,0.00018977]
[1641744010542,0.08161984,41640.0,41638.0,0.008]
[1641744011042,0.08161984,41640.0,41638.0,0.00807018]
[1641744011890,0.07061984,41640.0,41638.0,7.018e-05]
[1641744012094,0.07061984,41640.0,41636.0,0.00018978]
[1641744012291,0.07061984,41640.0,41637.0,0.00018977]
[1641744012691,0.08061984,41640.0,41638.0,0.011]
[1641744013094,0.08061984,41640.0,41638.0,0.01107018]
[1641744013291,0.22,41643.0,41638.0,0.01107018]
[1641744013894,0.22,41643.0,41638.0,7.018e-05]
[1641744014096,0.22,41643.0,41637.0,0.00019019]
[1641744014493,0.22,41643.0,41638.0,0.00019011]
[1641744014695,0.229,41643.0,41638.0,0.00019011]
[1641744015947,0.22,41643.0,41638.0,0.00019011]
[1641744016544,0.228,41643.0,41638.0,0.01138022]
[1641744016747,0.228,41643.0,41638.0,0.01119011]
[1641744017644,0.228,41643.0,41638.0,0.01119009]
[1641744017844,0.228,41643.0,41638.0,0.00019009]
[1641744017845,0.22,41643.0,41638.0,0.00019009]
[1641744018047,0.22,41643.0,41640.0,0.06006056]
[1641744018645,0.233,41643.0,41640.0,0.06906056]
[1641744018846,0.164317,41642.0,41640.0,0.009]
[1641744019696,0.233,41643.0,41640.0,0.009]
[1641744019897,0.22,41643.0,41638.0,0.00019009]
[1641744020399,0.22,41643.0,41639.0,0.12012]